[Event "Early-Titled-Tuesday-Blitz-October-24-2023"]
[Site "Chess.com"]
[Date "2023.10.24"]
[Round "10"]
[White "verrbaa"]
[Black "zajka-molotok"]
[Result "1-0"]
[WhiteElo "2462"]
[BlackElo "2535"]
[TimeControl "180+1"]
[EndTime "9:54:36 PDT"]
[Termination "verrbaa won by checkmate"]

1. Nf3 {[%clk 0:03:00.9]} 1... g6 {[%clk 0:02:57.3]} 2. c4 {[%clk 0:02:57.8]}
2... Bg7 {[%clk 0:02:57.3]} 3. Nc3 {[%clk 0:02:58.4]} 3... e5 {[%clk 0:02:57.1]}
4. g3 {[%clk 0:02:35.9]} 4... d6 {[%clk 0:02:52.2]} 5. Bg2 {[%clk 0:02:35.7]}
5... Nc6 {[%clk 0:02:48.8]} 6. O-O {[%clk 0:02:33.3]} 6... f5 {[%clk 0:02:47.6]}
7. e3 {[%clk 0:02:24.2]} 7... e4 {[%clk 0:02:46]} 8. Ne1 {[%clk 0:02:23.5]} 8...
Be6 {[%clk 0:02:34.5]} 9. Qa4 {[%clk 0:02:08.4]} 9... Ne7 {[%clk 0:02:28]} 10.
d4 {[%clk 0:02:04.7]} 10... d5 {[%clk 0:02:11.2]} 11. b3 {[%clk 0:02:02.8]}
11... O-O {[%clk 0:02:08]} 12. Ba3 {[%clk 0:02:02.9]} 12... Rf7 {[%clk
0:01:57.9]} 13. Rc1 {[%clk 0:02:00.4]} 13... g5 {[%clk 0:01:45.3]} 14. cxd5
{[%clk 0:01:56.8]} 14... Nxd5 {[%clk 0:01:43.7]} 15. Nxd5 {[%clk 0:01:47.9]}
15... Bxd5 {[%clk 0:01:44.6]} 16. f3 {[%clk 0:01:43.4]} 16... Qe8 {[%clk
0:01:32.8]} 17. fxe4 {[%clk 0:01:40.3]} 17... Bxe4 {[%clk 0:01:33.7]} 18. d5
{[%clk 0:01:23.1]} 18... Bxg2 {[%clk 0:01:23.5]} 19. Nxg2 {[%clk 0:01:22.5]}
19... Ne5 {[%clk 0:01:21.8]} 20. Qa5 {[%clk 0:01:12.3]} 20... Qd7 {[%clk
0:01:05.6]} 21. Rc2 {[%clk 0:00:54.5]} 21... Rd8 {[%clk 0:00:56.5]} 22. Rd1
{[%clk 0:00:34.1]} 22... a6 {[%clk 0:00:47]} 23. Bb2 {[%clk 0:00:32]} 23... Nf3+
{[%clk 0:00:37.4]} 24. Kh1 {[%clk 0:00:32.4]} 24... Bxb2 {[%clk 0:00:33.8]} 25.
Rxb2 {[%clk 0:00:32.6]} 25... Qd6 {[%clk 0:00:32.2]} 26. Rf1 {[%clk 0:00:23.7]}
26... Ne5 {[%clk 0:00:23.2]} 27. Rd2 {[%clk 0:00:14.2]} 27... Ng4 {[%clk
0:00:22.8]} 28. Qc3 {[%clk 0:00:10.8]} 28... Qh6 {[%clk 0:00:21.6]} 29. Ne1
{[%clk 0:00:11.2]} 29... Re8 {[%clk 0:00:20.2]} 30. Rf3 {[%clk 0:00:09.4]} 30...
Rfe7 {[%clk 0:00:17.2]} 31. Nc2 {[%clk 0:00:09.5]} 31... Re5 {[%clk 0:00:14.9]}
32. Qd3 {[%clk 0:00:08.5]} 32... Qg6 {[%clk 0:00:13.5]} 33. d6 {[%clk
0:00:08.4]} 33... cxd6 {[%clk 0:00:13]} 34. Qxd6 {[%clk 0:00:08.6]} 34... Qxd6
{[%clk 0:00:12.8]} 35. Rxd6 {[%clk 0:00:09.5]} 35... Nxe3 {[%clk 0:00:11.8]} 36.
Nxe3 {[%clk 0:00:09.8]} 36... Rxe3 {[%clk 0:00:12.7]} 37. Rxf5 {[%clk
0:00:10.4]} 37... Re1+ {[%clk 0:00:12.2]} 38. Kg2 {[%clk 0:00:10.8]} 38... R8e2+
{[%clk 0:00:11.9]} 39. Rf2 {[%clk 0:00:11.1]} 39... g4 {[%clk 0:00:11]} 40. Rd2
{[%clk 0:00:10.2]} 40... Rxf2+ {[%clk 0:00:10.7]} 41. Kxf2 {[%clk 0:00:10.2]}
41... Rh1 {[%clk 0:00:10.3]} 42. Kg2 {[%clk 0:00:10.9]} 42... Ra1 {[%clk
0:00:11]} 43. Rc2 {[%clk 0:00:10.2]} 43... Kf7 {[%clk 0:00:11.1]} 44. h3 {[%clk
0:00:10.7]} 44... h5 {[%clk 0:00:10.6]} 45. hxg4 {[%clk 0:00:10.7]} 45... hxg4
{[%clk 0:00:11.5]} 46. Re2 {[%clk 0:00:10.1]} 46... Kf6 {[%clk 0:00:11.6]} 47.
Kf2 {[%clk 0:00:10.1]} 47... Kf5 {[%clk 0:00:11.9]} 48. a4 {[%clk 0:00:08]}
48... a5 {[%clk 0:00:10.8]} 49. Kg2 {[%clk 0:00:08.2]} 49... Rb1 {[%clk
0:00:10.6]} 50. Re3 {[%clk 0:00:08.2]} 50... Rb2+ {[%clk 0:00:10.9]} 51. Kg1
{[%clk 0:00:08.6]} 51... b6 {[%clk 0:00:11]} 52. Kf1 {[%clk 0:00:07.9]} 52...
Rc2 {[%clk 0:00:10.8]} 53. Kg1 {[%clk 0:00:08.1]} 53... Rd2 {[%clk 0:00:10.1]}
54. Kf1 {[%clk 0:00:08.2]} 54... Rb2 {[%clk 0:00:09.4]} 55. Kg1 {[%clk
0:00:08.1]} 55... Rc2 {[%clk 0:00:07]} 56. Kf1 {[%clk 0:00:08]} 56... Rc5 {[%clk
0:00:07.1]} 57. Kf2 {[%clk 0:00:07.9]} 57... Re5 {[%clk 0:00:07]} 58. Rxe5+
{[%clk 0:00:05.9]} 58... Kxe5 {[%clk 0:00:07.9]} 59. Ke3 {[%clk 0:00:06.5]}
59... Kf5 {[%clk 0:00:01.3]} 60. Kd4 {[%clk 0:00:06.5]} 60... Kf6 {[%clk
0:00:01.7]} 61. Ke4 {[%clk 0:00:06.6]} 61... Ke6 {[%clk 0:00:01.2]} 62. Kf4
{[%clk 0:00:06.3]} 62... Kd5 {[%clk 0:00:01.8]} 63. Kxg4 {[%clk 0:00:06.8]}
63... Kd4 {[%clk 0:00:02.7]} 64. Kf4 {[%clk 0:00:06]} 64... Kc3 {[%clk
0:00:03.6]} 65. g4 {[%clk 0:00:06.5]} 65... Kxb3 {[%clk 0:00:04.5]} 66. g5
{[%clk 0:00:07.1]} 66... Kxa4 {[%clk 0:00:05.2]} 67. g6 {[%clk 0:00:07.6]} 67...
b5 {[%clk 0:00:06]} 68. g7 {[%clk 0:00:08.2]} 68... b4 {[%clk 0:00:06.5]} 69.
g8=Q {[%clk 0:00:08.4]} 69... b3 {[%clk 0:00:07]} 70. Ke3 {[%clk 0:00:07.6]}
70... Ka3 {[%clk 0:00:06.4]} 71. Kd2 {[%clk 0:00:05.7]} 71... Kb2 {[%clk
0:00:06.5]} 72. Qg7+ {[%clk 0:00:04.7]} 72... Kb1 {[%clk 0:00:06.4]} 73. Qc3
{[%clk 0:00:02.8]} 73... b2 {[%clk 0:00:06.1]} 74. Qa3 {[%clk 0:00:02.7]} 74...
a4 {[%clk 0:00:05.6]} 75. Qd3+ {[%clk 0:00:02.4]} 75... Ka1 {[%clk 0:00:05.5]}
76. Qc3 {[%clk 0:00:02.6]} 76... Ka2 {[%clk 0:00:05.4]} 77. Qc2 {[%clk
0:00:01.9]} 77... Ka1 {[%clk 0:00:04.9]} 78. Qxa4+ {[%clk 0:00:02.1]} 78... Kb1
{[%clk 0:00:05.5]} 79. Kc3 {[%clk 0:00:02.3]} 79... Kc1 {[%clk 0:00:05.3]} 80.
Qc2# {[%clk 0:00:02.7]} 1-0

[Event "Early-Titled-Tuesday-Blitz-October-24-2023"]
[Site "Chess.com"]
[Date "2023.10.24"]
[Round "10"]
[White "Larina_Maria"]
[Black "Jojo_898"]
[Result "1/2-1/2"]
[WhiteElo "2234"]
[BlackElo "2341"]
[TimeControl "180+1"]
[EndTime "9:54:46 PDT"]
[Termination "Game drawn by repetition"]

1. e4 {[%clk 0:03:00.9]} 1... d6 {[%clk 0:02:57.1]} 2. d4 {[%clk 0:03:00.4]}
2... Nf6 {[%clk 0:02:57.7]} 3. Nc3 {[%clk 0:03:00.2]} 3... g6 {[%clk 0:02:57.9]}
4. g3 {[%clk 0:02:59.9]} 4... c6 {[%clk 0:02:58.1]} 5. a4 {[%clk 0:02:57.9]}
5... Bg7 {[%clk 0:02:57.5]} 6. Bg2 {[%clk 0:02:58.1]} 6... O-O {[%clk
0:02:58.2]} 7. Nge2 {[%clk 0:02:58.1]} 7... Nbd7 {[%clk 0:02:56.8]} 8. O-O
{[%clk 0:02:58]} 8... e5 {[%clk 0:02:57.5]} 9. h3 {[%clk 0:02:55.5]} 9... Qe7
{[%clk 0:02:56.8]} 10. g4 {[%clk 0:02:52.5]} 10... Nb6 {[%clk 0:02:56.5]} 11. a5
{[%clk 0:02:47.5]} 11... Nc4 {[%clk 0:02:54.7]} 12. b3 {[%clk 0:02:45.6]} 12...
exd4 {[%clk 0:02:54.9]} 13. Nxd4 {[%clk 0:02:29]} 13... Ne5 {[%clk 0:02:46.1]}
14. f4 {[%clk 0:02:28.8]} 14... Ned7 {[%clk 0:02:45.7]} 15. g5 {[%clk
0:02:24.7]} 15... Nh5 {[%clk 0:02:44.4]} 16. Nce2 {[%clk 0:02:15.6]} 16... c5
{[%clk 0:02:42.3]} 17. c3 {[%clk 0:01:55.1]} 17... cxd4 {[%clk 0:02:41.6]} 18.
cxd4 {[%clk 0:01:56]} 18... f6 {[%clk 0:02:37.4]} 19. h4 {[%clk 0:01:51.2]}
19... Re8 {[%clk 0:02:23.5]} 20. Ba3 {[%clk 0:01:44.9]} 20... Nf8 {[%clk
0:02:22.5]} 21. e5 {[%clk 0:01:35.5]} 21... fxe5 {[%clk 0:02:21.6]} 22. dxe5
{[%clk 0:01:25.6]} 22... Be6 {[%clk 0:02:11.7]} 23. Bxd6 {[%clk 0:01:19]} 23...
Qf7 {[%clk 0:02:11.7]} 24. b4 {[%clk 0:01:13.4]} 24... Bc4 {[%clk 0:02:10.6]}
25. Qd2 {[%clk 0:01:03]} 25... Bxe2 {[%clk 0:02:07.7]} 26. Qxe2 {[%clk
0:01:03.9]} 26... Ng3 {[%clk 0:02:08.1]} 27. Qd3 {[%clk 0:00:57.4]} 27... Nxf1
{[%clk 0:02:08.6]} 28. Bxf8 {[%clk 0:00:51.7]} 28... Qxf8 {[%clk 0:02:04.1]} 29.
Rxf1 {[%clk 0:00:47.1]} 29... Qxb4 {[%clk 0:02:02.4]} 30. Qd5+ {[%clk
0:00:41.3]} 30... Kh8 {[%clk 0:02:02]} 31. Qxb7 {[%clk 0:00:40.7]} 31... Qxb7
{[%clk 0:02:01.1]} 32. Bxb7 {[%clk 0:00:41.6]} 32... Rab8 {[%clk 0:02:00.9]} 33.
a6 {[%clk 0:00:41.7]} 33... Rbd8 {[%clk 0:02:00.1]} 34. Rc1 {[%clk 0:00:38.9]}
34... Rf8 {[%clk 0:02:00.1]} 35. Rc4 {[%clk 0:00:37.7]} 35... Rf7 {[%clk
0:01:53.1]} 36. Kg2 {[%clk 0:00:32]} 36... h6 {[%clk 0:01:49.5]} 37. Kg3 {[%clk
0:00:31.4]} 37... Rd3+ {[%clk 0:01:43.1]} 38. Kg2 {[%clk 0:00:28.7]} 38... Kh7
{[%clk 0:01:41.1]} 39. Be4 {[%clk 0:00:24.2]} 39... Ra3 {[%clk 0:01:28.4]} 40.
h5 {[%clk 0:00:23.4]} 40... Rxf4 {[%clk 0:01:26.9]} 41. Bxg6+ {[%clk 0:00:21.1]}
41... Kg8 {[%clk 0:01:27]} 42. Rxf4 {[%clk 0:00:19.7]} 42... hxg5 {[%clk
0:01:27.5]} 43. Rf5 {[%clk 0:00:13.9]} 43... g4 {[%clk 0:01:22.5]} 44. e6 {[%clk
0:00:11.7]} 44... Bf8 {[%clk 0:01:17.7]} 45. Bf7+ {[%clk 0:00:12]} 45... Kg7
{[%clk 0:01:17]} 46. Rg5+ {[%clk 0:00:11.9]} 46... Kh6 {[%clk 0:01:15.3]} 47.
Rxg4 {[%clk 0:00:12.5]} 47... Rxa6 {[%clk 0:01:15.6]} 48. Rg6+ {[%clk
0:00:12.3]} 48... Kh7 {[%clk 0:01:15.2]} 49. Bg8+ {[%clk 0:00:11.8]} 49... Kh8
{[%clk 0:01:14.4]} 50. Bf7 {[%clk 0:00:11.6]} 50... Ra2+ {[%clk 0:01:08.7]} 51.
Kf3 {[%clk 0:00:11.6]} 51... Ra3+ {[%clk 0:01:08.1]} 52. Ke4 {[%clk 0:00:11.3]}
52... Kh7 {[%clk 0:01:08.6]} 53. Kf5 {[%clk 0:00:08.8]} 53... Bd6 {[%clk
0:01:05.3]} 54. Rg4 {[%clk 0:00:06.4]} 54... Rf3+ {[%clk 0:01:01.3]} 55. Ke4
{[%clk 0:00:05.5]} 55... Rf1 {[%clk 0:01:00.8]} 56. Kd5 {[%clk 0:00:05.1]} 56...
Be7 {[%clk 0:01:00.6]} 57. Kc6 {[%clk 0:00:05.3]} 57... Rd1 {[%clk 0:00:59.2]}
58. Ra4 {[%clk 0:00:04.3]} 58... Rd6+ {[%clk 0:00:55.3]} 59. Kc7 {[%clk
0:00:03.5]} 59... a6 {[%clk 0:00:55.6]} 60. Kb7 {[%clk 0:00:03.6]} 60... Kg7
{[%clk 0:00:52.3]} 61. Rxa6 {[%clk 0:00:03.6]} 61... Rxa6 {[%clk 0:00:53.2]} 62.
Kxa6 {[%clk 0:00:04.4]} 62... Bg5 {[%clk 0:00:47.2]} 63. Kb7 {[%clk 0:00:05.3]}
63... Kf8 {[%clk 0:00:47.2]} 64. Kc6 {[%clk 0:00:06.2]} 64... Ke7 {[%clk
0:00:45.5]} 65. Kc7 {[%clk 0:00:06.3]} 65... Bh6 {[%clk 0:00:45.3]} 66. Kc6
{[%clk 0:00:06.3]} 66... Bg5 {[%clk 0:00:44.2]} 67. Bg8 {[%clk 0:00:06.6]} 67...
Bh6 {[%clk 0:00:43.6]} 68. Kd5 {[%clk 0:00:06.7]} 68... Bg7 {[%clk 0:00:40.9]}
69. Ke4 {[%clk 0:00:07.2]} 69... Kf6 {[%clk 0:00:41.2]} 70. Kf4 {[%clk
0:00:07.4]} 70... Bh6+ {[%clk 0:00:41.4]} 71. Kg4 {[%clk 0:00:08]} 71... Bg7
{[%clk 0:00:39.9]} 72. Bf7 {[%clk 0:00:08.7]} 72... Bh6 {[%clk 0:00:39.5]} 73.
Kf3 {[%clk 0:00:09.2]} 73... Bg7 {[%clk 0:00:39.6]} 74. Kg4 {[%clk 0:00:10.1]}
74... Bh6 {[%clk 0:00:39.9]} 75. Kf3 {[%clk 0:00:10.3]} 75... Bg7 {[%clk
0:00:40.5]} 76. Ke4 {[%clk 0:00:11.2]} 76... Bh6 {[%clk 0:00:40.3]} 77. Kd5
{[%clk 0:00:12.1]} 77... Ke7 {[%clk 0:00:40.7]} 78. Kc6 {[%clk 0:00:13]} 78...
Bg7 {[%clk 0:00:39]} 79. Kc7 {[%clk 0:00:13.9]} 79... Be5+ {[%clk 0:00:38.9]}
80. Kc6 {[%clk 0:00:14.2]} 80... Bg7 {[%clk 0:00:39.8]} 81. Kd5 {[%clk
0:00:14.8]} 81... Bf6 {[%clk 0:00:26.8]} 82. Ke4 {[%clk 0:00:15.7]} 82... Kf8
{[%clk 0:00:20.6]} 83. Kf5 {[%clk 0:00:16.6]} 83... Bc3 {[%clk 0:00:19.1]} 84.
Kg6 {[%clk 0:00:17.5]} 84... Bb2 {[%clk 0:00:19.3]} 85. h6 {[%clk 0:00:18.4]}
85... Bc3 {[%clk 0:00:19.2]} 86. h7 {[%clk 0:00:19.3]} 86... Bd4 {[%clk
0:00:19.4]} 87. Bg8 {[%clk 0:00:19.7]} 87... Bh8 {[%clk 0:00:19.4]} 88. Bf7
{[%clk 0:00:19.3]} 88... Ke7 {[%clk 0:00:19.2]} 89. Bg8 {[%clk 0:00:18.3]} 89...
Bf6 {[%clk 0:00:19.7]} 90. Bf7 {[%clk 0:00:17.6]} 90... Bh8 {[%clk 0:00:20.3]}
91. Bg8 {[%clk 0:00:17.8]} 91... Bf6 {[%clk 0:00:20.9]} 92. Bf7 {[%clk
0:00:16.4]} 92... Bh8 {[%clk 0:00:21.6]} 1/2-1/2

[Event "Early-Titled-Tuesday-Blitz-October-24-2023"]
[Site "Chess.com"]
[Date "2023.10.24"]
[Round "10"]
[White "MokshAD1603"]
[Black "Byniolus"]
[Result "1/2-1/2"]
[WhiteElo "2657"]
[BlackElo "2803"]
[TimeControl "180+1"]
[EndTime "9:55:15 PDT"]
[Termination "Game drawn - insufficient material"]

1. c4 {[%clk 0:02:48.6]} 1... c6 {[%clk 0:02:59.8]} 2. g3 {[%clk 0:02:45.7]}
2... d5 {[%clk 0:03:00.7]} 3. Bg2 {[%clk 0:02:46.6]} 3... Nf6 {[%clk 0:03:00.4]}
4. Nf3 {[%clk 0:02:47.2]} 4... Bf5 {[%clk 0:03:00]} 5. Qb3 {[%clk 0:02:45]} 5...
Qb6 {[%clk 0:02:59.8]} 6. d3 {[%clk 0:02:39.3]} 6... e6 {[%clk 0:03:00.2]} 7.
O-O {[%clk 0:02:38.4]} 7... Nbd7 {[%clk 0:03:00.2]} 8. Be3 {[%clk 0:02:37.2]}
8... Bc5 {[%clk 0:03:00.5]} 9. d4 {[%clk 0:02:29.2]} 9... Be7 {[%clk 0:02:58.8]}
10. c5 {[%clk 0:02:28.2]} 10... Qc7 {[%clk 0:02:57.1]} 11. Nc3 {[%clk
0:02:25.2]} 11... O-O {[%clk 0:02:55.7]} 12. Bf4 {[%clk 0:02:15.4]} 12... Qc8
{[%clk 0:02:55.8]} 13. Rac1 {[%clk 0:01:59.3]} 13... h6 {[%clk 0:02:55.7]} 14.
h3 {[%clk 0:01:58]} 14... Re8 {[%clk 0:02:55.3]} 15. Rfe1 {[%clk 0:01:57.4]}
15... Bh7 {[%clk 0:02:54.3]} 16. Nd2 {[%clk 0:01:55.4]} 16... Bd8 {[%clk
0:02:51.2]} 17. e4 {[%clk 0:01:55.3]} 17... dxe4 {[%clk 0:02:33]} 18. Ndxe4
{[%clk 0:01:55.1]} 18... Bxe4 {[%clk 0:02:31]} 19. Nxe4 {[%clk 0:01:50.9]} 19...
Nxe4 {[%clk 0:02:30.2]} 20. Bxe4 {[%clk 0:01:43.8]} 20... Bc7 {[%clk 0:02:31.1]}
21. Bd2 {[%clk 0:01:36.9]} 21... Nf6 {[%clk 0:02:29]} 22. Bb1 {[%clk 0:01:34.8]}
22... e5 {[%clk 0:02:19]} 23. dxe5 {[%clk 0:01:31.1]} 23... Bxe5 {[%clk
0:02:15.3]} 24. Kg2 {[%clk 0:01:24.2]} 24... Qd7 {[%clk 0:02:04.7]} 25. Qc2
{[%clk 0:01:22.4]} 25... Rad8 {[%clk 0:01:51.6]} 26. Rcd1 {[%clk 0:01:22.2]}
26... Qd5+ {[%clk 0:01:48.7]} 27. Kg1 {[%clk 0:01:19.7]} 27... Qf3 {[%clk
0:01:16.3]} 28. Re3 {[%clk 0:01:00.7]} 28... Qh5 {[%clk 0:01:16.3]} 29. Rde1
{[%clk 0:01:00.6]} 29... Rd5 {[%clk 0:00:44.8]} 30. Bc3 {[%clk 0:00:57.8]} 30...
Re6 {[%clk 0:00:26.2]} 31. Qf5 {[%clk 0:00:19.6]} 31... Bxc3 {[%clk 0:00:15.6]}
32. Rxe6 {[%clk 0:00:18.6]} 32... Qxf5 {[%clk 0:00:09.7]} 33. Bxf5 {[%clk
0:00:14]} 33... Rxf5 {[%clk 0:00:08.9]} 34. Re8+ {[%clk 0:00:14]} 34... Nxe8
{[%clk 0:00:09.4]} 35. Rxe8+ {[%clk 0:00:14.7]} 35... Kh7 {[%clk 0:00:10.3]} 36.
bxc3 {[%clk 0:00:15.6]} 36... Rxc5 {[%clk 0:00:09.5]} 37. Re7 {[%clk 0:00:16.5]}
37... b5 {[%clk 0:00:05.2]} 38. Rxf7 {[%clk 0:00:15.8]} 38... a5 {[%clk
0:00:04.6]} 39. Rf3 {[%clk 0:00:15.8]} 39... Kg6 {[%clk 0:00:05]} 40. Rd3 {[%clk
0:00:16]} 40... Kf5 {[%clk 0:00:04.8]} 41. Kf1 {[%clk 0:00:15.5]} 41... Ke4
{[%clk 0:00:05.3]} 42. Ke2 {[%clk 0:00:16]} 42... a4 {[%clk 0:00:04]} 43. Re3+
{[%clk 0:00:16.1]} 43... Kd5 {[%clk 0:00:04.3]} 44. Kd3 {[%clk 0:00:16]} 44...
Rc4 {[%clk 0:00:03.5]} 45. Re7 {[%clk 0:00:15.4]} 45... g5 {[%clk 0:00:02.4]}
46. Rd7+ {[%clk 0:00:15]} 46... Kc5 {[%clk 0:00:02.3]} 47. Rh7 {[%clk
0:00:15.1]} 47... b4 {[%clk 0:00:01.8]} 48. cxb4+ {[%clk 0:00:14.6]} 48... Rxb4
{[%clk 0:00:02.7]} 49. Rxh6 {[%clk 0:00:13.6]} 49... Rb2 {[%clk 0:00:03.4]} 50.
Rg6 {[%clk 0:00:13.6]} 50... Rxa2 {[%clk 0:00:02.5]} 51. Rxg5+ {[%clk
0:00:14.3]} 51... Kb4 {[%clk 0:00:03.4]} 52. Rg6 {[%clk 0:00:13.4]} 52... Kb5
{[%clk 0:00:02.6]} 53. f4 {[%clk 0:00:12.6]} 53... a3 {[%clk 0:00:02.6]} 54. Kc3
{[%clk 0:00:13.1]} 54... Rf2 {[%clk 0:00:01.5]} 55. Rg8 {[%clk 0:00:12.3]} 55...
Rf3+ {[%clk 0:00:01.5]} 56. Kc2 {[%clk 0:00:12]} 56... Kc4 {[%clk 0:00:02.4]}
57. Ra8 {[%clk 0:00:11.5]} 57... Rf2+ {[%clk 0:00:02.9]} 58. Kb1 {[%clk
0:00:11]} 58... Kb3 {[%clk 0:00:03.4]} 59. Rb8+ {[%clk 0:00:11.1]} 59... Kc3
{[%clk 0:00:04]} 60. Rc8 {[%clk 0:00:11.2]} 60... Kb3 {[%clk 0:00:03.6]} 61.
Rb8+ {[%clk 0:00:11.7]} 61... Kc4 {[%clk 0:00:03.6]} 62. Ra8 {[%clk 0:00:11.6]}
62... Rf3 {[%clk 0:00:02.4]} 63. f5 {[%clk 0:00:11.1]} 63... c5 {[%clk
0:00:02.2]} 64. f6 {[%clk 0:00:11.2]} 64... Kb3 {[%clk 0:00:01.1]} 65. Rb8+
{[%clk 0:00:11.2]} 65... Kc3 {[%clk 0:00:01.8]} 66. Ra8 {[%clk 0:00:11.5]} 66...
Kb3 {[%clk 0:00:02.4]} 67. Rb8+ {[%clk 0:00:12]} 67... Kc3 {[%clk 0:00:02.7]}
68. Ra8 {[%clk 0:00:11.4]} 68... Kb4 {[%clk 0:00:03.2]} 69. Rb8+ {[%clk
0:00:10.8]} 69... Kc4 {[%clk 0:00:03.6]} 70. Ra8 {[%clk 0:00:11.4]} 70... Rxf6
{[%clk 0:00:03.4]} 71. Rxa3 {[%clk 0:00:11.1]} 71... Kb4 {[%clk 0:00:04.2]} 72.
Re3 {[%clk 0:00:11.1]} 72... c4 {[%clk 0:00:04.3]} 73. Kc2 {[%clk 0:00:11]}
73... Rf2+ {[%clk 0:00:04.5]} 74. Kc1 {[%clk 0:00:10.8]} 74... Rh2 {[%clk
0:00:04.3]} 75. g4 {[%clk 0:00:10.9]} 75... Rg2 {[%clk 0:00:04.8]} 76. Re8
{[%clk 0:00:09.6]} 76... Kb3 {[%clk 0:00:04.3]} 77. Rb8+ {[%clk 0:00:10.2]}
77... Kc3 {[%clk 0:00:04.7]} 78. Kd1 {[%clk 0:00:10.9]} 78... Rg1+ {[%clk
0:00:04.9]} 79. Ke2 {[%clk 0:00:11]} 79... Rg3 {[%clk 0:00:04.7]} 80. Rh8 {[%clk
0:00:08.4]} 80... Kc2 {[%clk 0:00:04.8]} 81. Kf2 {[%clk 0:00:08.9]} 81... Rd3
{[%clk 0:00:04.6]} 82. g5 {[%clk 0:00:09.2]} 82... c3 {[%clk 0:00:04.3]} 83. h4
{[%clk 0:00:09.5]} 83... Kd2 {[%clk 0:00:03.7]} 84. Rc8 {[%clk 0:00:09.4]} 84...
Rh3 {[%clk 0:00:03.9]} 85. g6 {[%clk 0:00:09.1]} 85... Rxh4 {[%clk 0:00:04.2]}
86. g7 {[%clk 0:00:09.2]} 86... Rg4 {[%clk 0:00:03.9]} 87. g8=Q {[%clk
0:00:09.7]} 87... Rxg8 {[%clk 0:00:04.8]} 88. Rxg8 {[%clk 0:00:10.5]} 88... c2
{[%clk 0:00:05.7]} 89. Rd8+ {[%clk 0:00:11.2]} 89... Kc3 {[%clk 0:00:06.2]} 90.
Ke2 {[%clk 0:00:11]} 90... c1=Q {[%clk 0:00:06.5]} 91. Rc8+ {[%clk 0:00:11.1]}
91... Kb2 {[%clk 0:00:07.4]} 92. Rxc1 {[%clk 0:00:11.2]} 92... Kxc1 {[%clk
0:00:08.3]} 1/2-1/2